fUSD/lending_fUSD_20250522
["ID","MTS","AMOUNT","RATE_DAILY","PERIOD"]
[361955801,1747908647409,-482.17,0.00032876,5]
[361955803,1747908647419,-1451.28,0.00032876,5]
[361955805,1747908647429,-420.0,0.00032876,5]
[361955808,1747908647439,-558.34,0.00032876,5]
[361955810,1747908647449,-461.15,0.00032876,5]
[361955812,1747908647460,-776.75,0.00032876,5]
[361955814,1747908647471,-420.0,0.00032876,5]
[361955816,1747908647480,-456.92,0.00032876,5]
[361955818,1747908647490,-428.6,0.00032876,5]
[361955820,1747908647501,-2152.7,0.00032876,5]
[361955822,1747908647511,-1079.26,0.00032876,5]
[361955824,1747908647520,-421.28430458,0.00032876,5]
[361955826,1747908647529,-420.0,0.00032876,5]
[361955828,1747908647539,-420.0,0.00032876,5]
[361955830,1747908647549,-421.77388615,0.00032876,5]
[361955831,1747908647558,-420.0,0.00032876,5]
[361955832,1747908647567,-420.0,0.00032876,5]
[361955833,1747908647576,-488.39,0.00032876,5]
[361955834,1747908647585,-1395.97,0.00032876,5]
[361955835,1747908647595,-734.31,0.00032876,5]
[361955836,1747908647604,-560.0,0.00032876,5]
[361955837,1747908647613,-421.73569815,0.00032876,5]
[361955838,1747908647622,-420.0,0.00032876,5]
[361955840,1747908647631,-420.0,0.00032876,5]
[361955841,1747908647641,-420.0,0.00032876,5]
[361955843,1747908647651,-36.48129582,0.00032876,5]
[361955848,1747908647682,-1903.18870418,0.00032876,5]
[361955850,1747908647692,-420.0,0.00032876,5]
[361955852,1747908647701,-88.57712854,0.00032876,5]
[361955855,1747908647727,-331.42287146,0.00032876,5]
[361955857,1747908647736,-445.56249634,0.00032876,5]
[361955860,1747908647748,-16.19750366,0.00032876,5]
[361955862,1747908647764,-422.81893365,0.00032876,5]
[361955864,1747908647774,-372.88356319,0.00032876,5]
[361955866,1747908647786,-95.25640145,0.00032876,5]
[361955868,1747908647795,-230.25051166,0.00032876,5]
[361955872,1747908647829,-190.73241161,0.00032876,5]
[361955874,1747908647839,-630.73,0.00032876,5]
[361955876,1747908647849,-420.0,0.00032876,5]
[361955878,1747908647859,-420.0,0.00032876,5]
[361955880,1747908647869,-771.07,0.00032876,5]
[361955883,1747908647879,-420.0,0.00032876,5]
[361955885,1747908647888,-420.0,0.00032876,5]
[361955886,1747908647898,-737.83,0.00032876,5]
[361955889,1747908647908,-216.69604604,0.00032876,5]
[361955891,1747908647919,-959.88,0.00032876,5]
[361955893,1747908647928,-2352.854509,0.00032876,7]
[361955894,1747908647938,-646.55,0.00032876,5]
[361955897,1747908647948,-2352.854509,0.00032876,7]
[361955899,1747908647957,-28.90681158,0.00032876,5]
[361955901,1747908647971,-329.07132241,0.00032876,5]
[361955903,1747908647983,-235.10186601,0.00032876,5]
[361955905,1747908647993,-423.68,0.00032876,5]
[361955907,1747908648002,-420.0,0.00032876,5]
[361955909,1747908648012,-421.01905027,0.00032876,5]
[361955911,1747908648022,-420.0,0.00032876,5]
[361955913,1747908648032,-420.0,0.00032876,5]
[361955915,1747908648041,-420.0,0.00032876,5]
[361955917,1747908648050,-645.43,0.00032876,5]
[361955919,1747908648060,-2352.854509,0.00032876,7]
[361955921,1747908648070,-2352.854509,0.00032876,7]
[361955923,1747908648079,-852.45699118,0.00032876,7]
[361955926,1747908648096,-1500.39751782,0.00032876,7]
[361955928,1747908648106,-420.0,0.00032876,5]
[361955930,1747908648115,-162.25291515,0.00032876,5]
[361955932,1747908648124,-422.05448496,0.00032876,5]
[361955934,1747908648134,-420.0,0.00032876,5]
[361955935,1747908648143,-1225.44,0.00032876,5]
[361955937,1747908648153,-737.67,0.00032876,5]
[361955938,1747908648163,-420.0,0.00032876,5]
[361955940,1747908648172,-420.0,0.00032876,5]
[361955941,1747908648182,-1051.2,0.00032876,5]
[361955943,1747908648191,-420.0,0.00032876,5]
[361955944,1747908648201,-1139.83,0.00032876,5]
[361955945,1747908648210,-420.0,0.00032876,5]
[361955947,1747908648221,-316.25354412,0.00032876,5]
[361955948,1747908648231,-420.0,0.00032876,5]
[361955950,1747908648241,-420.0,0.00032876,5]
[361955951,1747908648250,-420.0,0.00032876,5]
[361955953,1747908648260,-1824.59,0.00032876,5]
[361955954,1747908648270,-420.0,0.00032876,5]
[361955956,1747908648280,-420.0,0.00032876,5]
[361955957,1747908648290,-420.0,0.00032876,5]
[361955959,1747908648300,-660.74,0.00032876,5]
[361955960,1747908648310,-1087.11,0.00032876,5]
[361955962,1747908648319,-472.73,0.00032876,5]
[361955963,1747908648329,-705.2,0.00032876,5]
[361955965,1747908648341,-420.0,0.00032876,5]
[361955966,1747908648350,-573.88,0.00032876,5]
[361955967,1747908648360,-420.0,0.00032876,5]
[361955969,1747908648369,-420.0,0.00032876,5]
[361955971,1747908648381,-1324.81,0.00032876,5]
[361955972,1747908648391,-421.47930061,0.00032876,5]
[361955974,1747908648401,-420.0,0.00032876,5]
[361955975,1747908648411,-420.0,0.00032876,5]
[361955977,1747908648421,-420.0,0.00032876,5]
[361955978,1747908648431,-420.0,0.00032876,5]
[361955980,1747908648441,-731.21,0.00032876,5]
[361955981,1747908648450,-420.0,0.00032876,5]
[361955983,1747908648460,-420.0,0.00032876,5]
[361955984,1747908648470,-424.51433693,0.00032876,5]
[361955986,1747908648479,-420.0,0.00032876,5]
[361955987,1747908648490,-510.41,0.00032876,5]
[361955989,1747908648500,-420.0,0.00032876,5]
[361955990,1747908648509,-786.4,0.00032876,5]
[361955992,1747908648519,-1608.36,0.00032876,5]
[361955994,1747908648528,-420.0,0.00032876,5]
[361955995,1747908648538,-423.42209903,0.00032876,5]
[361955997,1747908648548,-1276.05,0.00032876,5]
[361955998,1747908648558,-420.0,0.00032876,5]
[361956000,1747908648567,-521.07,0.00032876,5]
[361956002,1747908648582,-401.06662812,0.00032876,5]
[361956003,1747908648592,-420.0,0.00032876,5]
[361956005,1747908648602,-928.19,0.00032876,5]
[361956006,1747908648612,-1167.2,0.00032876,5]
[361956008,1747908648622,-420.70347155,0.00032876,5]
[361956009,1747908648632,-420.0,0.00032876,5]
[361956011,1747908648642,-420.0,0.00032876,5]
[361956013,1747908648653,-421.9013205,0.00032876,5]
[361956014,1747908648662,-421.15655192,0.00032876,5]
[361956016,1747908648672,-2491.49,0.00032876,5]
[361956017,1747908648684,-422.15203194,0.00032876,5]
[361956019,1747908648694,-422.06118411,0.00032876,5]
[361956020,1747908648704,-420.0,0.00032876,5]
[361956022,1747908648715,-432.7,0.00032876,5]
[361956023,1747908648726,-457.9,0.00032876,5]
[361956025,1747908648736,-420.0,0.00032876,5]
[361956026,1747908648747,-420.0,0.00032876,5]
[361956028,1747908648757,-1097.16,0.00032876,5]
[361956030,1747908648767,-420.0,0.00032876,5]
[361956031,1747908648777,-1137.84,0.00032876,5]
[361956033,1747908648786,-1564.81,0.00032876,5]
[361956034,1747908648796,-1291.92,0.00032876,5]
[361956036,1747908648805,-420.0,0.00032876,5]
[361956037,1747908648815,-759.05,0.00032876,5]
[361956039,1747908648825,-189.155925,0.00032876,5]
[361956040,1747908648835,-420.0,0.00032876,5]
[361956042,1747908648844,-420.0,0.00032876,5]
[361956044,1747908648855,-420.0,0.00032876,5]
[361956045,1747908648865,-420.0,0.00032876,5]
[361956047,1747908648876,-808.64,0.00032876,5]
[361956048,1747908648886,-420.0,0.00032876,5]
[361956050,1747908648896,-420.0,0.00032876,5]
[361956052,1747908648905,-420.0,0.00032876,5]
[361956053,1747908648915,-420.0,0.00032876,5]
[361956055,1747908648924,-1066.07,0.00032876,5]
[361956065,1747908649034,-420.0,0.00032876,5]
[361956067,1747908649044,-420.0,0.00032876,5]
[361956068,1747908649054,-955.4,0.00032876,5]
[361956069,1747908649063,-420.0,0.00032876,5]
[361956070,1747908649073,-1076.26,0.00032876,5]
[361956071,1747908649082,-773.01,0.00032876,5]
[361956072,1747908649091,-420.0,0.00032876,5]
[361956073,1747908649100,-1537.71,0.00032876,5]
[361956074,1747908649110,-452.23,0.00032876,5]
[361956075,1747908649119,-1152.37,0.00032876,5]
[361956076,1747908649128,-420.0,0.00032876,5]
[361956077,1747908649137,-679.28,0.00032876,5]
[361956078,1747908649147,-420.0,0.00032876,5]
[361956079,1747908649156,-420.0,0.00032876,5]
[361956080,1747908649165,-420.0,0.00032876,5]
[361956081,1747908649175,-422.54298403,0.00032876,5]
[361956082,1747908649184,-420.0,0.00032876,5]
[361956083,1747908649194,-420.0,0.00032876,5]
[361956084,1747908649203,-565.318277,0.00032876,5]
[361956085,1747908649212,-732.65,0.00032876,5]
[361956086,1747908649223,-851.91,0.00032876,5]
[361956088,1747908649232,-840.09,0.00032876,5]
[361956089,1747908649242,-420.0,0.00032876,5]
[361956090,1747908649251,-420.0,0.00032876,5]
[361956092,1747908649261,-420.0,0.00032876,5]
[361956094,1747908649270,-565.01,0.00032876,5]
[361956096,1747908649280,-420.0,0.00032876,5]
[361956098,1747908649290,-421.32885401,0.00032876,5]
[361956100,1747908649299,-1246.21,0.00032876,5]
[361956102,1747908649308,-420.0,0.00032876,5]
[361956104,1747908649318,-420.0,0.00032876,5]
[361956106,1747908649327,-197.04952802,0.00032876,5]
[361956108,1747908649341,-421.11332245,0.00032876,5]
[361956110,1747908649351,-420.0,0.00032876,5]
[361956112,1747908649361,-1352.58,0.00032876,5]
[361956114,1747908649370,-420.0,0.00032876,5]
[361956115,1747908649381,-509.24,0.00032876,5]
[361956117,1747908649391,-1465.32,0.00032876,5]
[361956119,1747908649400,-843.58,0.00032876,5]
[361956121,1747908649409,-530.00774971,0.00032876,5]
[361956123,1747908649419,-502.27653352,0.00032876,5]
[361956125,1747908649428,-420.0,0.00032876,5]
[361956127,1747908649438,-420.0,0.00032876,5]
[361956129,1747908649447,-151.513584,0.00032876,7]
[361956131,1747908649457,-1260.23,0.00032876,5]
[361956133,1747908649467,-420.81942403,0.00032876,5]
[361956135,1747908649476,-423.1210803,0.00032876,5]
[361956137,1747908649486,-420.0,0.00032876,5]
[361956139,1747908649496,-420.0,0.00032876,5]
[361956141,1747908649506,-420.0,0.00032876,5]
[361956143,1747908649515,-420.0,0.00032876,5]
[361956145,1747908649525,-420.0,0.00032876,5]
[361956147,1747908649534,-1170.74,0.00032876,5]
[361956149,1747908649544,-420.0,0.00032876,5]
[361956152,1747908649554,-151.0,0.00032876,7]
[361956153,1747908649564,-1256.65,0.00032876,5]
[361956156,1747908649573,-1253.7,0.00032876,5]
[361956158,1747908649583,-420.0,0.00032876,5]
[361956159,1747908649592,-151.0,0.00032876,7]
[361956161,1747908649601,-420.0,0.00032876,5]
[361956163,1747908649611,-420.0,0.00032876,5]
[361956165,1747908649620,-498.36,0.00032876,5]
[361956167,1747908649630,-422.04674045,0.00032876,5]
[361956169,1747908649639,-420.0,0.00032876,5]
[361956171,1747908649648,-426.71,0.00032876,5]
[361956173,1747908649657,-420.0,0.00032876,5]
[361956175,1747908649667,-421.26042994,0.00032876,5]
[361956177,1747908649678,-265.100721,0.00032876,7]
[361956179,1747908649687,-265.100721,0.00032876,7]
[361956181,1747908649696,-420.0,0.00032876,5]
[361956183,1747908649706,-420.0,0.00032876,5]
[361956185,1747908649715,-420.0,0.00032876,5]
[361956187,1747908649724,-420.0,0.00032876,5]
[361956189,1747908649733,-980.65,0.00032876,5]
[361956192,1747908649746,-849.948329,0.00032876,7]
[361956194,1747908649755,-477.38,0.00032876,5]
[361956196,1747908649765,-849.948329,0.00032876,7]
[361956198,1747908649774,-849.948329,0.00032876,7]
[361956199,1747908649783,-1338.81,0.00032876,5]
[361956202,1747908649793,-420.0,0.00032876,5]
[361956204,1747908649803,-420.0,0.00032876,5]
[361956206,1747908649812,-420.0,0.00032876,5]
[361956208,1747908649821,-265.100721,0.00032876,7]
[361956209,1747908649830,-1079.88,0.00032876,5]
[361956211,1747908649839,-265.100721,0.00032876,7]
[361956213,1747908649848,-151.0,0.00032876,7]
[361956215,1747908649858,-420.0,0.00032876,5]
[361956217,1747908649867,-151.0,0.00032876,7]
[361956219,1747908649876,-420.0,0.00032876,5]
[361956221,1747908649886,-420.0,0.00032876,5]
[361956223,1747908649895,-1059.51,0.00032876,5]
[361956225,1747908649904,-956.24,0.00032876,5]
[361956227,1747908649913,-324.8104788,0.00032876,5]
[361956229,1747908649922,-1140.64,0.00032876,5]
[361956231,1747908649932,-420.0,0.00032876,5]
[361956233,1747908649941,-2169.49,0.00032876,5]
[361956235,1747908649950,-420.0,0.00032876,5]
[361956237,1747908649959,-1160.33,0.00032876,5]
[361956239,1747908649969,-422.76563677,0.00032876,5]
[361956241,1747908649978,-1198.24,0.00032876,5]
[361956243,1747908649987,-420.0,0.00032876,5]
[361956245,1747908649996,-618.39,0.00032876,5]
[361956247,1747908650005,-703.59,0.00032876,5]
[361956249,1747908650014,-420.0,0.00032876,5]
[361956251,1747908650023,-420.0,0.00032876,5]
[361956253,1747908650032,-420.0,0.00032876,5]
[361956255,1747908650042,-420.0,0.00032876,5]
[361956257,1747908650051,-420.91,0.00032876,5]
[361956259,1747908650060,-1113.89,0.00032876,5]
[361956261,1747908650069,-420.0,0.00032876,5]
[361956263,1747908650078,-420.0,0.00032876,5]
[361956265,1747908650087,-537.33689022,0.00032876,5]
[361956267,1747908650096,-481.4,0.00032876,5]
[361956269,1747908650105,-420.0,0.00032876,5]
[361956271,1747908650114,-420.0,0.00032876,5]
[361956273,1747908650124,-1608.01,0.00032876,5]
[361956275,1747908650133,-1309.97,0.00032876,5]
[361956277,1747908650143,-964.32,0.00032876,5]
[361956279,1747908650152,-420.0,0.00032876,5]
[361956281,1747908650161,-420.0,0.00032876,5]
[361956283,1747908650171,-667.41,0.00032876,5]
[361956285,1747908650180,-640.59,0.00032876,5]
[361956287,1747908650190,-420.0,0.00032876,5]
[361956289,1747908650199,-649.98,0.00032876,5]
[361956291,1747908650208,-420.0,0.00032876,5]
[361956293,1747908650218,-420.0,0.00032876,5]
[361956295,1747908650227,-420.0,0.00032876,5]
[361956297,1747908650236,-420.0,0.00032876,5]
[361956299,1747908650246,-421.26077462,0.00032876,5]
[361956301,1747908650255,-802.24,0.00032876,5]
[361956303,1747908650265,-464.69,0.00032876,5]
[361956305,1747908650274,-546.99454044,0.00032876,5]
[361956307,1747908650283,-464.9,0.00032876,5]
[361956309,1747908650293,-420.0,0.00032876,5]
[361956311,1747908650302,-152.109461,0.00032876,7]
[361956313,1747908650312,-420.0,0.00032876,5]
[361956315,1747908650321,-420.0,0.00032876,5]
[361956317,1747908650333,-637.33,0.00032876,5]
[361956319,1747908650344,-589.57,0.00032876,5]
[361956321,1747908650353,-151.968981,0.00032876,7]
[361956323,1747908650363,-926.95,0.00032876,5]
[361956325,1747908650373,-420.0,0.00032876,5]
[361956327,1747908650382,-404.45737497,0.00032876,5]
[361956329,1747908650391,-420.0,0.00032876,5]
[361956331,1747908650401,-420.0,0.00032876,5]
[361956332,1747908650412,-769.39,0.00032876,5]
[361956334,1747908650421,-1266.4,0.00032876,5]
[361956337,1747908650431,-420.0,0.00032876,5]
[361956339,1747908650440,-420.0,0.00032876,5]
[361956341,1747908650450,-751.95,0.00032876,5]
[361956343,1747908650460,-420.0,0.00032876,5]
[361956345,1747908650470,-420.0,0.00032876,5]
[361956347,1747908650480,-420.0,0.00032876,5]
[361956349,1747908650489,-420.0,0.00032876,5]
[361956351,1747908650499,-510.09,0.00032876,5]
[361956353,1747908650508,-420.0,0.00032876,5]
[361956355,1747908650518,-402.18809354,0.00032876,5]
[361956357,1747908650527,-1355.32,0.00032876,5]
[361956359,1747908650537,-562.75,0.00032876,5]
[361956361,1747908650546,-420.0,0.00032876,5]
[361956363,1747908650555,-420.0,0.00032876,5]
[361956364,1747908650564,-420.0,0.00032876,5]
[361956366,1747908650573,-420.0,0.00032876,5]
[361956368,1747908650583,-420.0,0.00032876,5]
[361956370,1747908650592,-1510.24,0.00032876,5]
[361956372,1747908650601,-1079.52,0.00032876,5]
[361956374,1747908650611,-811.58,0.00032876,5]
[361956376,1747908650622,-420.0,0.00032876,5]
[361956378,1747908650631,-499.91,0.00032876,5]
[361956380,1747908650641,-491.29,0.00032876,5]
[361956382,1747908650650,-463.13,0.00032876,5]
[361956384,1747908650659,-421.95856485,0.00032876,5]
[361956386,1747908650669,-420.0,0.00032876,5]
[361956388,1747908650679,-1007.61,0.00032876,5]
[361956390,1747908650688,-151.0,0.00032876,7]
[361956392,1747908650698,-533.84,0.00032876,5]
[361956394,1747908650707,-485.02,0.00032876,5]
[361956396,1747908650716,-151.0,0.00032876,7]
[361956398,1747908650725,-892.77,0.00032876,5]
[361956400,1747908650735,-420.0,0.00032876,5]
[361956402,1747908650744,-420.0,0.00032876,5]
[361956404,1747908650754,-864.07,0.00032876,5]
[361956406,1747908650763,-420.0,0.00032876,5]
[361956408,1747908650772,-1043.93,0.00032876,5]
[361956410,1747908650781,-1396.92,0.00032876,5]
[361956412,1747908650790,-420.0,0.00032876,5]
[361956414,1747908650799,-597.4,0.00032876,5]
[361956416,1747908650809,-420.0,0.00032876,5]
[361956418,1747908650818,-420.0,0.00032876,5]
[361956420,1747908650827,-420.0,0.00032876,5]
[361956421,1747908650836,-420.0,0.00032876,5]
[361956423,1747908650846,-1307.66,0.00032876,5]
[361956425,1747908650855,-420.0,0.00032876,5]
[361956427,1747908650864,-151.0,0.00032876,7]
[361956429,1747908650873,-252.497287,0.00032876,7]
[361956431,1747908650882,-753.46,0.00032876,5]
[361956433,1747908650891,-151.0,0.00032876,7]
[361956435,1747908650900,-488.89,0.00032876,5]
[361956437,1747908650909,-151.0,0.00032876,7]
[361956439,1747908650919,-420.0,0.00032876,5]
[361956441,1747908650928,-420.0,0.00032876,5]
[361956443,1747908650938,-151.0,0.00032876,7]
[361956445,1747908650947,-1204.43,0.00032876,5]
[361956447,1747908650956,-420.0,0.00032876,5]
[361956449,1747908650965,-749.54,0.00032876,5]
[361956451,1747908650976,-570.6,0.00032876,5]
[361956453,1747908650986,-420.0,0.00032876,5]
[361956455,1747908650995,-420.0,0.00032876,5]
[361956457,1747908651005,-420.0,0.00032876,5]
[361956458,1747908651015,-420.0,0.00032876,5]
[361956460,1747908651024,-577.02,0.00032876,5]
[361956462,1747908651034,-489.11,0.00032876,5]
[361956464,1747908651043,-2931.23,0.00032876,5]
[361956466,1747908651053,-437.25,0.00032876,5]
[361956468,1747908651063,-422.3894509,0.00032876,5]
[361956470,1747908651072,-959.31,0.00032876,5]
[361956472,1747908651082,-1158.49,0.00032876,5]
[361956474,1747908651091,-420.0,0.00032876,5]
[361956476,1747908651101,-1247.89,0.00032876,14]
[361956478,1747908651111,-1247.89,0.00032876,14]
[361956480,1747908651121,-1247.89,0.00032876,14]
[361956482,1747908651131,-1247.89,0.00032876,14]
[361956484,1747908651140,-1247.89,0.00032876,14]
[361956486,1747908651150,-551.34,0.00032876,5]
[361956488,1747908651160,-1247.89,0.00032876,14]
[361956490,1747908651169,-420.0,0.00032876,5]
[361956492,1747908651178,-1247.89,0.00032876,14]
[361956494,1747908651187,-1247.89,0.00032876,14]
[361956496,1747908651196,-1247.89,0.00032876,14]
[361956498,1747908651205,-1247.89,0.00032876,14]
[361956500,1747908651214,-420.0,0.00032876,5]
[361956502,1747908651225,-1247.89,0.00032876,14]
[361956504,1747908651235,-1247.89,0.00032876,14]
[361956506,1747908651245,-1247.89,0.00032876,14]
[361956508,1747908651255,-1247.89,0.00032876,14]
[361956510,1747908651264,-1247.89,0.00032876,14]
[361956512,1747908651273,-1247.89,0.00032876,14]
[361956514,1747908651282,-1247.89,0.00032876,14]
[361956516,1747908651291,-1247.89,0.00032876,14]
[361956517,1747908651300,-1247.89,0.00032876,14]
[361956519,1747908651310,-567.94,0.00032876,5]
[361956521,1747908651319,-1247.89,0.00032876,14]
[361956523,1747908651328,-947.96,0.00032876,5]
[361956525,1747908651342,-462.95,0.00032876,5]
[361956527,1747908651352,-1247.89,0.00032876,14]
[361956529,1747908651361,-1247.89,0.00032876,14]
[361956531,1747908651371,-1247.89,0.00032876,14]
[361956533,1747908651381,-1247.91053824,0.00032876,14]
[361956535,1747908651392,-420.0,0.00032876,5]
[361956536,1747908651402,-420.0,0.00032876,5]
[361956537,1747908651412,-451.33,0.00032876,5]
[361956538,1747908651421,-420.0,0.00032876,5]
[361956539,1747908651430,-420.0,0.00032876,5]
[361956540,1747908651440,-1497.41,0.00032876,5]
[361956541,1747908651449,-420.0,0.00032876,5]
[361956542,1747908651458,-420.0,0.00032876,2]
[361956543,1747908651468,-151.0,0.00032876,7]
[361956544,1747908651478,-420.0,0.00032876,5]
[361956545,1747908651487,-151.0,0.00032876,7]
[361956546,1747908651496,-420.98470766,0.00032876,5]
[361956547,1747908651506,-1233.97,0.00032876,5]
[361956548,1747908651515,-420.0,0.00032876,5]
[361956549,1747908651524,-420.0,0.00032876,5]
[361956551,1747908651533,-720.97,0.00032876,5]
[361956553,1747908651545,-420.0,0.00032876,5]
[361956555,1747908651554,-447.91,0.00032876,5]
[361956557,1747908651563,-1347.71,0.00032876,5]
[361956559,1747908651573,-1186.34,0.00032876,5]
[361956561,1747908651583,-420.0,0.00032876,5]
[361956563,1747908651592,-1175.13,0.00032876,5]
[361956565,1747908651602,-420.0,0.00032876,5]
[361956567,1747908651611,-420.0,0.00032876,5]
[361956569,1747908651620,-420.0,0.00032876,5]
[361956571,1747908651629,-420.0,0.00032876,5]
[361956573,1747908651639,-420.0,0.00032876,5]
[361956575,1747908651648,-587.4,0.00032876,5]
[361956577,1747908651657,-420.0,0.00032876,5]
[361956579,1747908651667,-420.0,0.00032876,5]
[361956581,1747908651676,-420.0,0.00032876,5]
[361956583,1747908651685,-420.0,0.00032876,5]
[361956585,1747908651694,-956.22,0.00032876,5]
[361956587,1747908651703,-420.0,0.00032876,5]
[361956589,1747908651712,-420.0,0.00032876,5]
[361956591,1747908651723,-420.0,0.00032876,5]
[361956593,1747908651732,-1123.12,0.00032876,5]
[361956595,1747908651741,-1031.49,0.00032876,5]
[361956597,1747908651752,-465.44,0.00032876,5]
[361956599,1747908651762,-420.0,0.00032876,5]
[361956601,1747908651772,-929.29,0.00032876,5]
[361956603,1747908651781,-420.0,0.00032876,5]
[361956605,1747908651791,-420.0,0.00032876,5]
[361956607,1747908651800,-389.58761968,0.00032876,5]
[361956609,1747908651810,-420.0,0.00032876,5]
[361956611,1747908651820,-420.0,0.00032876,5]
[361956612,1747908651830,-420.0,0.00032876,5]
[361956614,1747908651839,-422.91124553,0.00032876,5]
[361956616,1747908651848,-420.0,0.00032876,5]
[361956619,1747908651858,-1919.05,0.00032876,5]
[361956621,1747908651867,-1150.88,0.00032876,5]
[361956623,1747908651876,-420.0,0.00032876,5]
[361956624,1747908651885,-421.49449817,0.00032876,5]
[361956626,1747908651895,-420.0,0.00032876,5]
[361956628,1747908651904,-420.0,0.00032876,5]
[361956630,1747908651914,-703.69,0.00032876,5]
[361956632,1747908651923,-422.04221766,0.00032876,5]
[361956634,1747908651933,-431.3,0.00032876,5]
[361956636,1747908651943,-420.0,0.00032876,5]
[361956638,1747908651952,-303.73175757,0.00032876,5]
[361956640,1747908651962,-447.6,0.00032876,5]
[361956642,1747908651971,-420.0,0.00032876,5]
[361956644,1747908651980,-421.30644519,0.00032876,5]
[361956646,1747908651989,-423.17136855,0.00032876,5]
[361956648,1747908651999,-919.47,0.00032876,5]
[361956650,1747908652008,-420.0,0.00032876,5]
[361956652,1747908652018,-420.0,0.00032876,5]
[361956654,1747908652027,-1171.28,0.00032876,5]
[361956656,1747908652036,-420.0,0.00032876,5]
[361956658,1747908652045,-632.72,0.00032876,5]
[361956660,1747908652055,-1151.3,0.00032876,5]
[361956662,1747908652064,-420.0,0.00032876,5]
[361956664,1747908652074,-988.14,0.00032876,5]
[361956666,1747908652083,-341.2043805,0.00032876,5]
[361956668,1747908652092,-420.0,0.00032876,5]
[361956670,1747908652101,-420.0,0.00032876,5]
[361956672,1747908652111,-420.0,0.00032876,5]
[361956674,1747908652119,-597.64,0.00032876,5]
[361956676,1747908652129,-536.62,0.00032876,5]
[361956678,1747908652138,-500.0,0.00032876,5]
[361956680,1747908652147,-507.98431668,0.00032876,5]
[361956682,1747908652156,-854.39,0.00032876,5]
[361956684,1747908652165,-420.0,0.00032876,5]
[361956686,1747908652174,-420.0,0.00032876,5]
[361956688,1747908652184,-2315.38,0.00032876,5]
[361956690,1747908652194,-420.0,0.00032876,5]
[361956692,1747908652204,-420.0,0.00032876,5]
[361956694,1747908652214,-420.0,0.00032876,5]
[361956696,1747908652223,-420.0,0.00032876,5]
[361956698,1747908652233,-587.33,0.00032876,5]
[361956700,1747908652242,-420.0,0.00032876,5]
[361956702,1747908652250,-2016.84,0.00032876,5]
[361956704,1747908652260,-420.0,0.00032876,5]
[361956706,1747908652269,-1291.16,0.00032876,5]
[361956708,1747908652278,-420.0,0.00032876,5]
[361956710,1747908652288,-1252.43,0.00032876,5]
[361956712,1747908652298,-1067.65,0.00032876,5]
[361956714,1747908652307,-1068.66,0.00032876,5]
[361956716,1747908652316,-478.101106,0.00032876,5]
[361956718,1747908652325,-420.0,0.00032876,5]
[361956720,1747908652337,-1326.77,0.00032876,5]
[361956722,1747908652347,-246.319255,0.00032876,7]
[361956724,1747908652356,-246.319255,0.00032876,7]
[361956726,1747908652366,-420.0,0.00032876,5]
[361956728,1747908652377,-1414.16,0.00032876,5]
[361956730,1747908652386,-571.03,0.00032876,5]